[Event "Live Chess"]
[Site "Chess.com"]
[Date "2023.05.20"]
[Round "-"]
[White "MaximKhimchenko"]
[Black "Rusty_Bridges"]
[Result "0-1"]
[WhiteElo "1367"]
[BlackElo "1420"]
[TimeControl "300"]
[EndTime "9:57:36 PDT"]
[Termination "Rusty_Bridges won by resignation"]

1. e4 {[%clk 0:04:59.4]} 1... d6 {[%clk 0:04:57.2]} 2. Nf3 {[%clk 0:04:58.4]}
2... Nf6 {[%clk 0:04:54.2]} 3. d4 {[%clk 0:04:47.6]} 3... Nxe4 {[%clk
0:04:51.6]} 4. Bd3 {[%clk 0:04:45.9]} 4... Nf6 {[%clk 0:04:49.5]} 5. Nc3 {[%clk
0:04:43.9]} 5... e6 {[%clk 0:04:48]} 6. Bg5 {[%clk 0:04:42.3]} 6... Be7 {[%clk
0:04:46.4]} 7. Bxf6 {[%clk 0:04:34.2]} 7... Bxf6 {[%clk 0:04:44.5]} 8. O-O
{[%clk 0:04:34.1]} 8... Nc6 {[%clk 0:04:41.3]} 9. Re1 {[%clk 0:03:49.6]} 9... b6
{[%clk 0:04:23.8]} 10. d5 {[%clk 0:03:47.3]} 10... Ne5 {[%clk 0:04:17.5]} 11.
Nxe5 {[%clk 0:02:48.1]} 11... Bxe5 {[%clk 0:04:12.9]} 12. f4 {[%clk 0:02:22.5]}
12... Bd4+ {[%clk 0:04:07.9]} 13. Kh1 {[%clk 0:02:20.6]} 13... O-O {[%clk
0:04:05.6]} 14. Bxh7+ {[%clk 0:02:18.1]} 14... Kxh7 {[%clk 0:03:54.7]} 15. Qxd4
{[%clk 0:02:18]} 15... Qf6 {[%clk 0:03:18.1]} 16. Qf2 {[%clk 0:02:09.8]} 16...
Bb7 {[%clk 0:03:07.7]} 17. Ne4 {[%clk 0:02:07.1]} 17... Qg6 {[%clk 0:02:56.6]}
18. Ng5+ {[%clk 0:02:05.8]} 18... Kg8 {[%clk 0:02:54]} 19. dxe6 {[%clk
0:02:04.9]} 19... fxe6 {[%clk 0:02:46.9]} 20. Rxe6 {[%clk 0:02:04.8]} 20... Qh5
{[%clk 0:02:34.6]} 21. Qg3 {[%clk 0:01:55.2]} 21... Bd5 {[%clk 0:02:24.5]} 22.
Re7 {[%clk 0:01:50.1]} 22... Rae8 {[%clk 0:02:11.2]} 23. Rxe8 {[%clk 0:01:22.3]}
23... Rxe8 {[%clk 0:02:09.4]} 24. Nf3 {[%clk 0:01:18.8]} 24... Re2 {[%clk
0:01:53.3]} 25. Re1 {[%clk 0:00:46.6]} 25... Rxe1+ {[%clk 0:01:48.3]} 26. Qxe1
{[%clk 0:00:46.5]} 26... Bxf3 {[%clk 0:01:44.8]} 27. Qe8+ {[%clk 0:00:44.7]}
27... Kh7 {[%clk 0:01:43.2]} 28. gxf3 {[%clk 0:00:38.5]} 28... Qxe8 {[%clk
0:01:40.6]} 0-1

[Event "Live Chess"]
[Site "Chess.com"]
[Date "2023.05.20"]
[Round "-"]
[White "jameskwong"]
[Black "Greenbecker"]
[Result "0-1"]
[WhiteElo "2155"]
[BlackElo "1707"]
[TimeControl "300"]
[EndTime "9:57:43 PDT"]
[Termination "Greenbecker won by resignation"]

1. d4 {[%clk 0:04:58.9]} 1... d5 {[%clk 0:04:58.4]} 2. c4 {[%clk 0:04:57.6]}
2... e6 {[%clk 0:04:56]} 3. Nc3 {[%clk 0:04:56.2]} 3... Nf6 {[%clk 0:04:55.1]}
4. Bg5 {[%clk 0:04:54.5]} 4... Bb4 {[%clk 0:04:53.6]} 5. Nf3 {[%clk 0:04:51.3]}
5... c6 {[%clk 0:04:52.7]} 6. e3 {[%clk 0:04:47.8]} 6... Nbd7 {[%clk 0:04:51.6]}
7. cxd5 {[%clk 0:04:43.7]} 7... cxd5 {[%clk 0:04:45.4]} 8. Bd3 {[%clk
0:04:41.5]} 8... Qa5 {[%clk 0:04:43.8]} 9. Qc2 {[%clk 0:04:38.5]} 9... O-O
{[%clk 0:04:40]} 10. O-O {[%clk 0:04:35.9]} 10... h6 {[%clk 0:04:38.8]} 11. Bh4
{[%clk 0:04:30.5]} 11... b6 {[%clk 0:04:36.4]} 12. Ne5 {[%clk 0:04:26.1]} 12...
Nxe5 {[%clk 0:04:34]} 13. dxe5 {[%clk 0:04:23.3]} 13... Nd7 {[%clk 0:04:32.9]}
14. Bg3 {[%clk 0:04:10.2]} 14... Bb7 {[%clk 0:04:27.3]} 15. Rfc1 {[%clk
0:03:59.7]} 15... Rac8 {[%clk 0:04:25.5]} 16. a3 {[%clk 0:03:51.3]} 16... Bxc3
{[%clk 0:04:18.5]} 17. bxc3 {[%clk 0:03:51.2]} 17... Nc5 {[%clk 0:04:13.1]} 18.
Be2 {[%clk 0:03:45.4]} 18... Na4 {[%clk 0:04:09]} 19. c4 {[%clk 0:03:43.4]}
19... Ba6 {[%clk 0:04:01.6]} 20. Qb3 {[%clk 0:03:29.4]} 20... Nc5 {[%clk
0:03:50.6]} 21. Qb4 {[%clk 0:03:19.4]} 21... Qxb4 {[%clk 0:03:47.6]} 22. axb4
{[%clk 0:03:19]} 22... Nb3 {[%clk 0:03:41.5]} 23. Rxa6 {[%clk 0:02:59.5]} 23...
Nxc1 {[%clk 0:03:39.7]} 24. Bf1 {[%clk 0:02:54.9]} 24... dxc4 {[%clk 0:03:32.3]}
25. e4 {[%clk 0:02:52.2]} 25... Rc7 {[%clk 0:03:21.3]} 26. Bf4 {[%clk
0:02:47.4]} 26... Nd3 {[%clk 0:03:18]} 27. Bd2 {[%clk 0:02:40.3]} 27... Nxe5
{[%clk 0:03:12.4]} 28. Bc3 {[%clk 0:02:38]} 28... Nd3 {[%clk 0:03:04]} 29. g3
{[%clk 0:02:25.2]} 29... Rd8 {[%clk 0:02:55.9]} 30. Kg2 {[%clk 0:02:23]} 30...
Rcd7 {[%clk 0:02:47.7]} 31. Ra1 {[%clk 0:02:19.9]} 31... f6 {[%clk 0:02:36.4]}
32. Kf3 {[%clk 0:02:16.7]} 32... Ne5+ {[%clk 0:02:33.8]} 33. Bxe5 {[%clk
0:02:14.5]} 33... fxe5 {[%clk 0:02:32.7]} 34. Bxc4 {[%clk 0:02:14.3]} 34... Kf7
{[%clk 0:02:18.3]} 35. Ke3 {[%clk 0:02:08.6]} 35... Ke7 {[%clk 0:02:15]} 36. h4
{[%clk 0:01:53]} 36... Rc8 {[%clk 0:02:08.7]} 37. Bb5 {[%clk 0:01:41.9]} 37...
Rc3+ {[%clk 0:01:57.4]} 38. Ke2 {[%clk 0:01:39.2]} 38... Rdc7 {[%clk 0:01:53]}
39. f4 {[%clk 0:01:21.1]} 39... Rxg3 {[%clk 0:01:47.6]} 40. fxe5 {[%clk
0:01:14.6]} 40... Rg4 {[%clk 0:01:43]} 41. Kf3 {[%clk 0:01:06.7]} 41... Rxh4
{[%clk 0:01:41.6]} 42. Rd1 {[%clk 0:00:56.7]} 42... g5 {[%clk 0:01:34.8]} 43.
Rd6 {[%clk 0:00:48.5]} 43... Rf4+ {[%clk 0:01:30.9]} 44. Ke3 {[%clk 0:00:45.7]}
44... h5 {[%clk 0:01:04.9]} 0-1

[Event "Live Chess"]
[Site "Chess.com"]
[Date "2023.05.20"]
[Round "-"]
[White "Enhard"]
[Black "noobsmoker24"]
[Result "1-0"]
[WhiteElo "1411"]
[BlackElo "1380"]
[TimeControl "300"]
[EndTime "9:57:46 PDT"]
[Termination "Enhard won by resignation"]

1. d4 {[%clk 0:04:57.2]} 1... Nf6 {[%clk 0:04:59.2]} 2. Bf4 {[%clk 0:04:55.7]}
2... d5 {[%clk 0:04:58.4]} 3. e3 {[%clk 0:04:54.9]} 3... c5 {[%clk 0:04:58]} 4.
c3 {[%clk 0:04:53.7]} 4... Nc6 {[%clk 0:04:57.5]} 5. Nf3 {[%clk 0:04:51.5]} 5...
e6 {[%clk 0:04:56.1]} 6. h3 {[%clk 0:04:50.2]} 6... Bd6 {[%clk 0:04:55.2]} 7.
Bxd6 {[%clk 0:04:49.3]} 7... Qxd6 {[%clk 0:04:55.1]} 8. Be2 {[%clk 0:04:47.8]}
8... b6 {[%clk 0:04:54]} 9. Nbd2 {[%clk 0:04:46.3]} 9... Bb7 {[%clk 0:04:53.5]}
10. O-O {[%clk 0:04:42.1]} 10... Ne7 {[%clk 0:04:52.6]} 11. a3 {[%clk
0:04:36.6]} 11... O-O {[%clk 0:04:51.6]} 12. Re1 {[%clk 0:04:32.5]} 12... Ne4
{[%clk 0:04:48.1]} 13. dxc5 {[%clk 0:04:26.6]} 13... bxc5 {[%clk 0:04:47.1]} 14.
Nxe4 {[%clk 0:04:24.7]} 14... Qc7 {[%clk 0:04:19.5]} 15. Ned2 {[%clk 0:04:17.8]}
15... e5 {[%clk 0:04:14.7]} 16. Nb3 {[%clk 0:04:15.4]} 16... e4 {[%clk
0:04:12.4]} 17. Nh2 {[%clk 0:04:04.1]} 17... Bc8 {[%clk 0:04:05.5]} 18. Bg4
{[%clk 0:03:59.9]} 18... f5 {[%clk 0:04:03.2]} 19. Be2 {[%clk 0:03:53]} 19... f4
{[%clk 0:03:53.6]} 20. exf4 {[%clk 0:03:47.7]} 20... Qxf4 {[%clk 0:03:50.9]} 21.
Rf1 {[%clk 0:03:43.6]} 21... Qg5 {[%clk 0:03:36.8]} 22. Bg4 {[%clk 0:03:41.5]}
22... Nf5 {[%clk 0:03:28.5]} 23. Bxf5 {[%clk 0:03:32.7]} 23... Bxf5 {[%clk
0:03:26.9]} 24. Ng4 {[%clk 0:03:32]} 24... h5 {[%clk 0:03:24.8]} 25. Qxd5+
{[%clk 0:03:05.2]} 25... Kh8 {[%clk 0:03:21.5]} 26. Ne3 {[%clk 0:03:03.2]} 26...
Rad8 {[%clk 0:03:08.3]} 27. Qe5 {[%clk 0:02:44.3]} 27... Rde8 {[%clk 0:02:33.2]}
28. Qg3 {[%clk 0:02:41.4]} 28... Qf6 {[%clk 0:02:14.1]} 29. Nxf5 {[%clk
0:02:37.3]} 29... Qxf5 {[%clk 0:02:14]} 30. Qe3 {[%clk 0:02:30.2]} 30... Rd8
{[%clk 0:02:12]} 31. Nxc5 {[%clk 0:02:26.1]} 31... Rd5 {[%clk 0:02:05.2]} 32. b4
{[%clk 0:02:23]} 32... Re8 {[%clk 0:01:48.7]} 33. Rad1 {[%clk 0:02:18.6]} 33...
Rxd1 {[%clk 0:01:37.1]} 34. Rxd1 {[%clk 0:02:17]} 34... Rf8 {[%clk 0:01:37]} 35.
Rf1 {[%clk 0:02:15.8]} 35... Qe5 {[%clk 0:01:32.9]} 36. Qd4 {[%clk 0:02:01.4]}
1-0

[Event "Live Chess"]
[Site "Chess.com"]
[Date "2023.05.20"]
[Round "-"]
[White "Horseymobile"]
[Black "Crowded_House"]
[Result "0-1"]
[WhiteElo "1249"]
[BlackElo "1697"]
[TimeControl "300"]
[EndTime "9:57:57 PDT"]
[Termination "Crowded_House won by resignation"]

1. d4 {[%clk 0:04:59]} 1... e6 {[%clk 0:04:57.5]} 2. e4 {[%clk 0:04:57.4]} 2...
d5 {[%clk 0:04:57.1]} 3. Nc3 {[%clk 0:04:54.1]} 3... Bb4 {[%clk 0:04:54]} 4. Bd3
{[%clk 0:04:47]} 4... c5 {[%clk 0:04:41.8]} 5. dxc5 {[%clk 0:04:31.9]} 5... Bxc5
{[%clk 0:04:40.7]} 6. Nf3 {[%clk 0:04:24]} 6... Ne7 {[%clk 0:04:17.1]} 7. O-O
{[%clk 0:03:59.5]} 7... O-O {[%clk 0:04:15.3]} 8. Bg5 {[%clk 0:03:49.6]} 8... h6
{[%clk 0:04:06]} 9. Bh4 {[%clk 0:03:40.9]} 9... Nbc6 {[%clk 0:03:50.6]} 10. Bb5
{[%clk 0:03:15.6]} 10... Qc7 {[%clk 0:03:34.1]} 11. exd5 {[%clk 0:03:04.5]}
11... exd5 {[%clk 0:03:20]} 12. Bg3 {[%clk 0:02:18.3]} 12... Bd6 {[%clk
0:03:17.6]} 13. Nxd5 {[%clk 0:02:09.2]} 13... Nxd5 {[%clk 0:03:16.3]} 14. Qxd5
{[%clk 0:02:06.6]} 14... Bxg3 {[%clk 0:03:12.3]} 15. fxg3 {[%clk 0:02:05.6]}
15... Be6 {[%clk 0:02:59.8]} 16. Qc5 {[%clk 0:01:50.4]} 16... Qb6 {[%clk
0:02:52.6]} 17. Qxb6 {[%clk 0:01:49.2]} 17... axb6 {[%clk 0:02:50.8]} 18. a3
{[%clk 0:01:44]} 18... Rad8 {[%clk 0:02:42.1]} 19. Rad1 {[%clk 0:01:38]} 19...
Rxd1 {[%clk 0:02:36]} 20. Rxd1 {[%clk 0:01:36.3]} 20... Rd8 {[%clk 0:02:34.1]}
21. Rxd8+ {[%clk 0:01:34.8]} 21... Nxd8 {[%clk 0:02:33.7]} 22. Nd4 {[%clk
0:01:28.1]} 22... Bd5 {[%clk 0:02:24.7]} 23. c4 {[%clk 0:01:22.5]} 23... Be4
{[%clk 0:02:19.6]} 24. b4 {[%clk 0:01:15.8]} 24... Ne6 {[%clk 0:02:06.9]} 25.
Nxe6 {[%clk 0:00:55]} 25... fxe6 {[%clk 0:02:05.8]} 26. a4 {[%clk 0:00:51.2]}
26... Kf7 {[%clk 0:01:57.5]} 27. Kf2 {[%clk 0:00:44.2]} 27... Ke7 {[%clk
0:01:56.6]} 28. Ke3 {[%clk 0:00:43.3]} 28... Bxg2 {[%clk 0:01:55.3]} 29. Kd4
{[%clk 0:00:38.7]} 29... Kd6 {[%clk 0:01:49.1]} 30. a5 {[%clk 0:00:27.7]} 30...
e5+ {[%clk 0:01:42.9]} 31. Kd3 {[%clk 0:00:21.3]} 31... Bf1+ {[%clk 0:01:39.5]}
32. Ke3 {[%clk 0:00:19]} 32... bxa5 {[%clk 0:01:34.4]} 33. bxa5 {[%clk
0:00:17.3]} 33... Kc5 {[%clk 0:01:31.5]} 34. Ke4 {[%clk 0:00:14.8]} 34... Bxc4
{[%clk 0:01:22.5]} 35. Bxc4 {[%clk 0:00:10.5]} 35... Kxc4 {[%clk 0:01:22.2]} 36.
Kxe5 {[%clk 0:00:08.7]} 36... Kb5 {[%clk 0:01:21.9]} 37. Ke6 {[%clk 0:00:07.2]}
37... Kxa5 {[%clk 0:01:21.6]} 38. Kf7 {[%clk 0:00:06.8]} 38... b5 {[%clk
0:01:21.2]} 39. Kxg7 {[%clk 0:00:06.5]} 39... b4 {[%clk 0:01:20.8]} 40. Kxh6
{[%clk 0:00:06.2]} 40... b3 {[%clk 0:01:20.5]} 41. g4 {[%clk 0:00:05.9]} 41...
b2 {[%clk 0:01:20.2]} 0-1

[Event "Live Chess"]
[Site "Chess.com"]
[Date "2023.05.20"]
[Round "-"]
[White "onemoretime1975"]
[Black "domrobson"]
[Result "0-1"]
[WhiteElo "1909"]
[BlackElo "1737"]
[TimeControl "300"]
[EndTime "9:58:01 PDT"]
[Termination "domrobson won by resignation"]

1. e4 {[%clk 0:04:57.4]} 1... e5 {[%clk 0:04:59.1]} 2. Nf3 {[%clk 0:04:55.6]}
2... Nc6 {[%clk 0:04:58.3]} 3. Bc4 {[%clk 0:04:54]} 3... Nf6 {[%clk 0:04:57.7]}
4. d3 {[%clk 0:04:52.4]} 4... Bc5 {[%clk 0:04:57.1]} 5. Nc3 {[%clk 0:04:49.6]}
5... d6 {[%clk 0:04:54.4]} 6. h3 {[%clk 0:04:48]} 6... a6 {[%clk 0:04:53.7]} 7.
a3 {[%clk 0:04:46.2]} 7... Ba7 {[%clk 0:04:53.2]} 8. O-O {[%clk 0:04:43.3]} 8...
Qe7 {[%clk 0:04:51.5]} 9. Be3 {[%clk 0:04:42]} 9... b5 {[%clk 0:04:44.5]} 10.
Nd5 {[%clk 0:04:38.2]} 10... Nxd5 {[%clk 0:04:42.2]} 11. Bxd5 {[%clk 0:04:36.4]}
11... Bb7 {[%clk 0:04:41.7]} 12. Bxa7 {[%clk 0:04:33.6]} 12... Rxa7 {[%clk
0:04:38.3]} 13. Nh2 {[%clk 0:04:26.9]} 13... Nd4 {[%clk 0:04:33.5]} 14. Bxb7
{[%clk 0:04:25.1]} 14... Rxb7 {[%clk 0:04:31.5]} 15. f4 {[%clk 0:04:21.3]} 15...
O-O {[%clk 0:04:27.3]} 16. fxe5 {[%clk 0:04:19.4]} 16... dxe5 {[%clk 0:04:23.1]}
17. Nf3 {[%clk 0:04:09.3]} 17... Nxf3+ {[%clk 0:04:19.8]} 18. Qxf3 {[%clk
0:04:05.1]} 18... Qc5+ {[%clk 0:04:17.9]} 19. Qf2 {[%clk 0:04:03.1]} 19... Qxf2+
{[%clk 0:04:14]} 20. Rxf2 {[%clk 0:04:01.6]} 20... c5 {[%clk 0:04:12.7]} 21. b3
{[%clk 0:03:58.1]} 21... f6 {[%clk 0:04:10.5]} 22. a4 {[%clk 0:03:55.7]} 22...
b4 {[%clk 0:04:04.2]} 23. g4 {[%clk 0:03:50.4]} 23... h6 {[%clk 0:03:59.9]} 24.
h4 {[%clk 0:03:48.6]} 24... a5 {[%clk 0:03:57.8]} 25. Raf1 {[%clk 0:03:45.4]}
25... Rbf7 {[%clk 0:03:55.5]} 26. Kg2 {[%clk 0:03:41.1]} 26... g5 {[%clk
0:03:51.9]} 27. hxg5 {[%clk 0:03:33.3]} 27... fxg5 {[%clk 0:03:48.7]} 28. Rxf7
{[%clk 0:03:30.6]} 28... Rxf7 {[%clk 0:03:47.3]} 29. Rxf7 {[%clk 0:03:28.4]}
29... Kxf7 {[%clk 0:03:45.8]} 30. Kf3 {[%clk 0:03:25.5]} 30... Kg6 {[%clk
0:03:43.7]} 31. Kg3 {[%clk 0:03:18.3]} 31... h5 {[%clk 0:03:42.3]} 32. Kh3
{[%clk 0:03:08.9]} 32... Kh6 {[%clk 0:03:34]} 33. Kg3 {[%clk 0:03:06]} 33...
hxg4 {[%clk 0:03:32.7]} 34. Kxg4 {[%clk 0:03:03.3]} 34... Kg6 {[%clk 0:03:32.3]}
35. Kg3 {[%clk 0:02:59]} 35... Kh5 {[%clk 0:03:30.8]} 36. Kh3 {[%clk 0:02:56.8]}
36... g4+ {[%clk 0:03:29.8]} 37. Kg3 {[%clk 0:02:55.8]} 37... Kg5 {[%clk
0:03:29.4]} 0-1

[Event "Live Chess"]
[Site "Chess.com"]
[Date "2023.05.20"]
[Round "-"]
[White "Hacker_2009"]
[Black "Supertromp"]
[Result "0-1"]
[WhiteElo "1899"]
[BlackElo "2166"]
[TimeControl "300"]
[EndTime "9:58:05 PDT"]
[Termination "Supertromp won by resignation"]

1. d4 {[%clk 0:04:59.3]} 1... Nf6 {[%clk 0:04:57.1]} 2. Nf3 {[%clk 0:04:58.2]}
2... g6 {[%clk 0:04:55.3]} 3. c4 {[%clk 0:04:56.8]} 3... Bg7 {[%clk 0:04:52.5]}
4. Nc3 {[%clk 0:04:55.4]} 4... O-O {[%clk 0:04:42.3]} 5. e4 {[%clk 0:04:54.3]}
5... d6 {[%clk 0:04:41.6]} 6. Be2 {[%clk 0:04:52.9]} 6... Na6 {[%clk 0:04:39.5]}
7. O-O {[%clk 0:04:51.7]} 7... e5 {[%clk 0:04:38.3]} 8. h3 {[%clk 0:04:48.2]}
8... c6 {[%clk 0:04:32.4]} 9. Be3 {[%clk 0:04:47.1]} 9... Qe7 {[%clk 0:04:23.3]}
10. Qc2 {[%clk 0:04:43.9]} 10... Re8 {[%clk 0:04:11]} 11. d5 {[%clk 0:04:39]}
11... cxd5 {[%clk 0:04:02.5]} 12. Nxd5 {[%clk 0:04:36.3]} 12... Nxd5 {[%clk
0:04:01.3]} 13. cxd5 {[%clk 0:04:35.3]} 13... b6 {[%clk 0:03:50.4]} 14. Rac1
{[%clk 0:04:31.9]} 14... Bb7 {[%clk 0:03:45]} 15. Qa4 {[%clk 0:04:27.2]} 15...
Nc5 {[%clk 0:03:34.2]} 16. Bxc5 {[%clk 0:04:24.6]} 16... bxc5 {[%clk 0:03:32.2]}
17. Ba6 {[%clk 0:04:22.8]} 17... f5 {[%clk 0:03:11.7]} 18. Bxb7 {[%clk
0:04:09.8]} 18... Qxb7 {[%clk 0:03:11.6]} 19. Ng5 {[%clk 0:04:07.4]} 19... Bh6
{[%clk 0:03:03.7]} 20. h4 {[%clk 0:03:59.3]} 20... Qe7 {[%clk 0:03:02.1]} 21.
exf5 {[%clk 0:03:56.6]} 21... gxf5 {[%clk 0:02:59.4]} 22. Rce1 {[%clk
0:03:48.9]} 22... Bxg5 {[%clk 0:02:57.8]} 23. hxg5 {[%clk 0:03:48.1]} 23... Qxg5
{[%clk 0:02:57.4]} 24. Qc6 {[%clk 0:03:46.7]} 24... Qf6 {[%clk 0:02:44.3]} 25.
Re3 {[%clk 0:03:45.4]} 25... f4 {[%clk 0:02:41.2]} 26. Rb3 {[%clk 0:03:39.9]}
26... Rac8 {[%clk 0:02:29.3]} 27. Qd7 {[%clk 0:03:37.2]} 27... Rcd8 {[%clk
0:02:22.1]} 28. Qxa7 {[%clk 0:03:32.6]} 28... Ra8 {[%clk 0:02:14]} 29. Qd7
{[%clk 0:03:28.8]} 29... Re7 {[%clk 0:02:11.8]} 30. Qc6 {[%clk 0:03:26.3]} 30...
Rxa2 {[%clk 0:02:04.6]} 31. Rb8+ {[%clk 0:03:24]} 31... Kg7 {[%clk 0:02:03.4]}
32. Qc8 {[%clk 0:03:21.7]} 32... Kh6 {[%clk 0:01:43]} 33. Qh3+ {[%clk
0:03:11.2]} 33... Kg7 {[%clk 0:01:41.4]} 34. Qc8 {[%clk 0:03:08.4]} 34... Raa7
{[%clk 0:01:34.5]} 35. Qg8+ {[%clk 0:03:05.7]} 35... Kh6 {[%clk 0:01:31.6]} 36.
Rf8 {[%clk 0:03:04.4]} 36... Qg6 {[%clk 0:01:25.3]} 37. Qh8 {[%clk 0:02:59.9]}
37... Rg7 {[%clk 0:01:23]} 0-1

[Event "Live Chess"]
[Site "Chess.com"]
[Date "2023.05.20"]
[Round "-"]
[White "Nazarenko_vital"]
[Black "lightningorderyt"]
[Result "1-0"]
[WhiteElo "1600"]
[BlackElo "535"]
[TimeControl "300"]
[EndTime "9:58:07 PDT"]
[Termination "Nazarenko_vital won by checkmate"]

1. e4 {[%clk 0:04:53.5]} 1... c6 {[%clk 0:04:59]} 2. d4 {[%clk 0:04:51.4]} 2...
d5 {[%clk 0:04:58.9]} 3. Nd2 {[%clk 0:04:49.4]} 3... c5 {[%clk 0:04:53.4]} 4.
Bb5+ {[%clk 0:04:41.4]} 4... Bd7 {[%clk 0:04:39.7]} 5. Bxd7+ {[%clk 0:04:39.1]}
5... Nxd7 {[%clk 0:04:39.6]} 6. Ne2 {[%clk 0:04:24.5]} 6... e6 {[%clk
0:04:37.1]} 7. c3 {[%clk 0:04:19.2]} 7... c4 {[%clk 0:04:35.9]} 8. O-O {[%clk
0:04:14.1]} 8... Be7 {[%clk 0:04:26]} 9. f4 {[%clk 0:04:12.7]} 9... Ngf6 {[%clk
0:04:01.4]} 10. e5 {[%clk 0:04:08.1]} 10... Ne4 {[%clk 0:03:56.4]} 11. Nxe4
{[%clk 0:04:06.3]} 11... dxe4 {[%clk 0:03:54.1]} 12. Ng3 {[%clk 0:04:02.5]}
12... O-O {[%clk 0:03:45.1]} 13. Nxe4 {[%clk 0:03:54.2]} 13... Qb6 {[%clk
0:03:04.6]} 14. Kh1 {[%clk 0:03:45.9]} 14... f6 {[%clk 0:02:52.7]} 15. Qh5
{[%clk 0:03:21.4]} 15... f5 {[%clk 0:02:32.7]} 16. Ng5 {[%clk 0:02:52.3]} 16...
Bxg5 {[%clk 0:02:23.2]} 17. Qxg5 {[%clk 0:02:30.7]} 17... Rf7 {[%clk 0:01:56.9]}
18. Qh5 {[%clk 0:02:18.8]} 18... Nf8 {[%clk 0:01:47.4]} 19. Qe2 {[%clk
0:02:07.5]} 19... Rc8 {[%clk 0:01:41.9]} 20. Be3 {[%clk 0:02:02.3]} 20... Qd8
{[%clk 0:01:30.6]} 21. h3 {[%clk 0:01:56.1]} 21... Ng6 {[%clk 0:01:24]} 22. d5
{[%clk 0:01:52]} 22... Qxd5 {[%clk 0:01:14.6]} 23. Rad1 {[%clk 0:01:49.9]} 23...
Qa5 {[%clk 0:00:58.6]} 24. Rd6 {[%clk 0:01:42.8]} 24... Nf8 {[%clk 0:00:39.3]}
25. a3 {[%clk 0:01:40.5]} 25... Rd8 {[%clk 0:00:30]} 26. Rfd1 {[%clk 0:01:38.6]}
26... Rxd6 {[%clk 0:00:25.1]} 27. Rxd6 {[%clk 0:01:35.4]} 27... Re7 {[%clk
0:00:19.4]} 28. Qxc4 {[%clk 0:01:31.6]} 28... Ng6 {[%clk 0:00:17.1]} 29. Rxe6
{[%clk 0:01:28]} 29... Rxe6 {[%clk 0:00:15.8]} 30. Qxe6+ {[%clk 0:01:27.6]}
30... Kh8 {[%clk 0:00:12.9]} 31. Qe8+ {[%clk 0:01:24.3]} 31... Nf8 {[%clk
0:00:10.5]} 32. Qxf8# {[%clk 0:01:23.9]} 1-0

[Event "Live Chess"]
[Site "Chess.com"]
[Date "2023.05.20"]
[Round "-"]
[White "martinsmartin63"]
[Black "viktorskliarov"]
[Result "0-1"]
[WhiteElo "760"]
[BlackElo "2648"]
[TimeControl "300"]
[EndTime "9:58:07 PDT"]
[Termination "viktorskliarov won by resignation"]

1. e3 {[%clk 0:04:54.6]} 1... c5 {[%clk 0:04:55]} 2. Nf3 {[%clk 0:04:48.1]} 2...
Nc6 {[%clk 0:04:53.8]} 3. Bc4 {[%clk 0:04:44.5]} 3... d5 {[%clk 0:04:50]} 4. Bb5
{[%clk 0:04:40.2]} 4... Bd7 {[%clk 0:04:48]} 5. d3 {[%clk 0:04:37.2]} 5... Qa5+
{[%clk 0:04:31]} 6. Nc3 {[%clk 0:04:33.2]} 6... d4 {[%clk 0:04:30.3]} 7. exd4
{[%clk 0:04:29.7]} 7... cxd4 {[%clk 0:04:29.4]} 8. Nxd4 {[%clk 0:04:22.9]} 8...
Nxd4 {[%clk 0:04:26.8]} 9. Bxd7+ {[%clk 0:04:20.3]} 9... Kxd7 {[%clk 0:04:19]}
10. Qg4+ {[%clk 0:04:15.5]} 10... Ne6 {[%clk 0:04:15.8]} 11. d4 {[%clk
0:04:07.2]} 11... Nf6 {[%clk 0:04:14.1]} 12. Qf3 {[%clk 0:03:58.6]} 12... Qa6
{[%clk 0:04:05.4]} 13. d5 {[%clk 0:03:53.2]} 13... Nd4 {[%clk 0:03:48.8]} 14.
Qd3 {[%clk 0:03:35.1]} 14... Qxd3 {[%clk 0:03:46.6]} 15. cxd3 {[%clk 0:03:32.6]}
15... Nc2+ {[%clk 0:03:45.9]} 16. Kd2 {[%clk 0:03:24.9]} 16... Nxa1 {[%clk
0:03:45.8]} 17. Re1 {[%clk 0:03:13.8]} 17... e6 {[%clk 0:03:44.8]} 18. dxe6+
{[%clk 0:03:02.5]} 18... fxe6 {[%clk 0:03:44.7]} 19. Kd1 {[%clk 0:02:38.1]}
19... Bb4 {[%clk 0:03:40.8]} 0-1